fUST/lending_fUST_20250930
["ID","MTS","AMOUNT","RATE_DAILY","PERIOD"]
[388421722,1759163464611,-2373.54,0.00024113,2]
[388421723,1759163464620,-480.0,0.00024113,2]
[388421724,1759163464630,-3315.73,0.00024113,2]
[388421725,1759163464640,-654.65,0.00024113,2]
[388421726,1759163464650,-2886.24458389,0.00024116,2]
[388421727,1759163464661,-3889.21126803,0.00024134,2]
[388421728,1759163464672,-600.0,0.00024141,20]
[388421729,1759163464681,-151.0,0.00024197,2]
[388421730,1759163464692,-286239.82834938,0.000242,23]
[388421731,1759163464701,-151.0,0.000242,7]
[388421732,1759163464711,-151.0,0.000242,7]
[388421733,1759163464720,-151.0,0.000242,7]
[388421734,1759163464730,-151.0,0.000242,7]
[388421735,1759163464740,-151.0,0.000242,7]
[388421736,1759163464750,-151.0,0.000242,7]
[388421737,1759163464759,-151.0,0.000242,7]
[388421738,1759163464769,-151.0,0.000242,7]
[388421739,1759163464779,-151.0,0.000242,7]
[388421740,1759163464788,-151.0,0.000242,7]
[388421741,1759163464799,-151.0,0.000242,7]
[388421742,1759163464809,-151.0,0.000242,7]
[388421743,1759163464819,-151.0,0.000242,7]
[388421744,1759163464829,-151.0,0.000242,7]
[388421745,1759163464838,-151.0,0.000242,7]
[388421746,1759163464847,-151.0,0.000242,7]
[388421747,1759163464855,-151.0,0.000242,7]
[388421748,1759163464864,-151.0,0.000242,7]
[388421749,1759163464874,-151.0,0.000242,7]
[388421750,1759163464883,-151.0,0.000242,7]
[388421751,1759163464892,-151.0,0.000242,7]
[388421752,1759163464900,-151.0,0.000242,7]
[388421753,1759163464908,-151.0,0.000242,7]
[388421754,1759163464916,-151.0,0.000242,7]
[388421755,1759163464923,-151.0,0.000242,7]
[388421756,1759163464930,-151.0,0.000242,7]
[388421757,1759163464937,-151.0,0.000242,7]
[388421758,1759163464944,-151.0,0.000242,7]
[388421759,1759163464950,-151.0,0.000242,7]
[388421760,1759163464957,-151.0,0.000242,7]
[388421761,1759163464965,-151.0,0.000242,7]
[388421762,1759163464973,-151.0,0.000242,7]
[388421763,1759163464981,-151.0,0.000242,7]
[388421764,1759163464991,-200.0,0.000242,3]
[388421765,1759163465000,-200.0,0.000242,3]
[388421766,1759163465010,-200.0,0.000242,3]
[388421767,1759163465019,-200.0,0.000242,3]
[388421768,1759163465029,-200.0,0.000242,3]
[388421769,1759163465039,-200.0,0.000242,3]
[388421770,1759163465049,-151.0,0.000242,7]
[388421771,1759163465058,-151.0,0.000242,7]
[388421772,1759163465067,-151.0,0.000242,7]
[388421773,1759163465077,-151.0,0.000242,7]
[388421774,1759163465086,-151.0,0.000242,7]
[388421775,1759163465095,-625.57673,0.000242,7]
[388421776,1759163465105,-160.239725,0.000242,7]
[388421777,1759163465115,-625.57673,0.000242,7]
[388421778,1759163465124,-625.57673,0.000242,7]
[388421779,1759163465134,-625.57673,0.000242,7]
[388421780,1759163465144,-151.0,0.000242,7]
[388421781,1759163465153,-151.0,0.000242,7]
[388421782,1759163465165,-151.0,0.000242,7]
[388421783,1759163465175,-401.230282,0.000242,7]
[388421784,1759163465185,-151.0,0.000242,7]
[388421785,1759163465196,-401.230282,0.000242,7]
[388421786,1759163465206,-151.0,0.000242,7]
[388421787,1759163465215,-401.230282,0.000242,7]
[388421788,1759163465225,-401.230282,0.000242,7]
[388421789,1759163465235,-297.861742,0.000242,7]
[388421790,1759163465245,-151.0,0.000242,7]
[388421791,1759163465256,-151.0,0.000242,7]
[388421792,1759163465266,-151.0,0.000242,7]
[388421793,1759163465276,-151.0,0.000242,7]
[388421794,1759163465285,-153.732048,0.000242,7]
[388421795,1759163465296,-151.0,0.000242,7]
[388421796,1759163465307,-151.0,0.000242,7]
[388421797,1759163465317,-151.0,0.000242,7]
[388421798,1759163465327,-151.0,0.000242,7]
[388421799,1759163465337,-151.0,0.000242,7]
[388421800,1759163465347,-151.0,0.000242,7]
[388421801,1759163465357,-151.0,0.000242,7]
[388421802,1759163465367,-447.937231,0.000242,7]
[388421803,1759163465376,-447.937231,0.000242,7]
[388421804,1759163465385,-447.937231,0.000242,7]
[388421805,1759163465395,-151.0,0.000242,7]
[388421806,1759163465404,-447.937231,0.000242,7]
[388421807,1759163465415,-151.0,0.000242,7]
[388421808,1759163465425,-151.0,0.000242,7]
[388421809,1759163465434,-151.0,0.000242,7]
[388421810,1759163465444,-151.0,0.000242,7]
[388421811,1759163465454,-151.0,0.000242,7]
[388421812,1759163465463,-154.014455,0.000242,7]
[388421813,1759163465472,-461.701477,0.000242,7]
[388421814,1759163465482,-461.701477,0.000242,7]
[388421815,1759163465491,-461.701477,0.000242,7]
[388421816,1759163465501,-151.0,0.000242,7]
[388421817,1759163465511,-461.701477,0.000242,7]
[388421818,1759163465520,-224.564691,0.000242,7]
[388421819,1759163465530,-151.0,0.000242,7]
[388421820,1759163465539,-151.0,0.000242,7]
[388421821,1759163465551,-151.0,0.000242,7]
[388421822,1759163465560,-151.0,0.000242,7]
[388421823,1759163465570,-220.815654,0.000242,7]
[388421824,1759163465580,-151.0,0.000242,7]
[388421825,1759163465591,-151.0,0.000242,7]
[388421826,1759163465600,-151.0,0.000242,7]
[388421827,1759163465609,-151.0,0.000242,7]
[388421828,1759163465619,-295.362297,0.000242,7]
[388421829,1759163465629,-151.0,0.000242,7]
[388421830,1759163465638,-151.0,0.000242,7]
[388421831,1759163465648,-151.0,0.000242,7]
[388421832,1759163465658,-151.0,0.000242,7]
[388421833,1759163465668,-198.2541,0.000242,7]
[388421834,1759163465677,-772.759636,0.000242,7]
[388421835,1759163465687,-772.759636,0.000242,7]
[388421836,1759163465696,-772.759636,0.000242,7]
[388421837,1759163465705,-772.759644,0.000242,7]
[388421838,1759163465715,-151.0,0.000242,7]
[388421839,1759163465724,-2264.347528,0.000242,7]
[388421840,1759163465732,-2264.347528,0.000242,7]
[388421841,1759163465741,-2264.347528,0.000242,7]
[388421842,1759163465751,-2264.34752907,0.000242,7]
[388421843,1759163465760,-180.758138,0.000242,7]
[388421844,1759163465769,-151.0,0.000242,7]
[388421845,1759163465778,-180.758138,0.000242,7]
[388421846,1759163465790,-151.0,0.000242,7]
[388421847,1759163465800,-180.758138,0.000242,7]
[388421848,1759163465809,-151.0,0.000242,7]
[388421849,1759163465818,-180.758145,0.000242,7]
[388421850,1759163465828,-151.0,0.000242,7]
[388421851,1759163465838,-169.358262,0.000242,7]
[388421852,1759163465847,-169.358262,0.000242,7]
[388421853,1759163465857,-169.358262,0.000242,7]
[388421854,1759163465867,-169.358269,0.000242,7]
[388421855,1759163465877,-151.0,0.000242,7]
[388421856,1759163465887,-10000.0,0.000242,7]
[388421857,1759163465896,-10000.0,0.000242,7]
[388421858,1759163465905,-10000.0,0.000242,7]
[388421859,1759163465915,-10000.0,0.000242,7]
[388421860,1759163465924,-9307.081684,0.000242,7]
[388421861,1759163465934,-480.0,0.00024207,2]
[388421862,1759163465943,-515.37,0.00024207,2]
[388421863,1759163465952,-161.24248463,0.00024208,2]
[388421864,1759163465961,-480.0,0.00024209,2]
[388421865,1759163465971,-544.8,0.00024209,2]
[388421866,1759163465981,-568.82,0.00024209,2]
[388421867,1759163465990,-541.72,0.00024209,2]
[388421868,1759163466000,-480.0,0.00024209,2]
[388421869,1759163466010,-1234.29,0.00024209,2]
[388421870,1759163466019,-480.0,0.00024209,2]
[388421871,1759163466029,-480.0,0.00024209,2]
[388421872,1759163466039,-547.33,0.00024209,2]
[388421873,1759163466048,-480.0,0.00024209,2]
[388421874,1759163466058,-622.02,0.00024209,2]
[388421875,1759163466068,-679.71,0.00024209,2]
[388421876,1759163466078,-488.66,0.00024209,2]
[388421877,1759163466088,-1018.26,0.00024209,2]
[388421878,1759163466098,-1408.26,0.00024209,2]
[388421879,1759163466108,-1045.3,0.00024209,2]
[388421880,1759163466117,-994.71,0.00024209,2]
[388421881,1759163466126,-506.03,0.00024209,2]
[388421882,1759163466135,-480.0,0.00024209,2]
[388421883,1759163466143,-480.0,0.00024209,2]
[388421884,1759163466153,-480.0,0.00024209,2]
[388421885,1759163466163,-480.0,0.00024209,2]
[388421886,1759163466171,-1333.39,0.00024209,2]
[388421887,1759163466181,-588.58,0.00024209,2]
[388421888,1759163466191,-558.05,0.00024209,2]
[388421889,1759163466200,-480.0,0.00024209,2]
[388421890,1759163466209,-568.96,0.00024209,2]
[388421891,1759163466218,-480.0,0.00024209,2]
[388421892,1759163466227,-740.79,0.00024209,2]
[388421893,1759163466236,-621.5,0.00024209,2]
[388421894,1759163466246,-480.0,0.00024209,2]
[388421895,1759163466255,-622.34,0.00024209,2]
[388421896,1759163466264,-1115.0,0.00024209,2]
[388421897,1759163466274,-480.0,0.00024209,2]
[388421898,1759163466283,-480.0,0.00024209,2]
[388421899,1759163466293,-967.54,0.00024209,2]
[388421900,1759163466302,-480.0,0.00024209,2]
[388421901,1759163466311,-480.0,0.00024209,2]
[388421902,1759163466321,-896.02,0.00024209,2]
[388421903,1759163466330,-779.78,0.00024209,2]
[388421904,1759163466341,-887.09,0.00024209,2]
[388421905,1759163466350,-480.0,0.00024209,2]
[388421906,1759163466361,-400.0,0.00024209,2]
[388421907,1759163466371,-480.0,0.00024209,2]
[388421908,1759163466380,-696.91,0.00024209,2]
[388421909,1759163466390,-567.55,0.00024209,2]
[388421910,1759163466399,-480.0,0.00024209,2]
[388421911,1759163466411,-480.0,0.00024209,2]
[388421912,1759163466420,-1014.47,0.00024209,2]
[388421913,1759163466431,-480.0,0.00024209,2]
[388421914,1759163466441,-480.0,0.00024209,2]
[388421915,1759163466451,-480.0,0.00024209,2]
[388421916,1759163466461,-2095.47,0.00024209,2]
[388421917,1759163466470,-527.68,0.00024209,2]
[388421918,1759163466480,-1790.79,0.00024209,2]
[388421919,1759163466490,-799.96,0.00024209,2]
[388421920,1759163466499,-1081.53,0.00024209,2]
[388421921,1759163466509,-480.0,0.00024209,2]
[388421922,1759163466519,-480.0,0.00024209,2]
[388421923,1759163466529,-779.99,0.00024209,2]
[388421924,1759163466538,-480.0,0.00024209,2]
[388421925,1759163466547,-482.05150474,0.00024209,2]
[388421926,1759163466556,-480.0,0.00024209,2]
[388421927,1759163466565,-1124.81,0.00024209,2]
[388421928,1759163466575,-572.65,0.00024209,2]
[388421929,1759163466583,-480.0,0.00024209,2]
[388421930,1759163466593,-1410.75,0.00024209,2]
[388421931,1759163466602,-1194.48,0.00024209,2]
[388421932,1759163466611,-1328.7,0.00024209,2]
[388421933,1759163466620,-480.0,0.00024209,2]
[388421934,1759163466629,-480.0,0.00024209,2]
[388421935,1759163466639,-517.56,0.00024209,2]
[388421936,1759163466648,-5557.87,0.00024209,2]
[388421937,1759163466659,-2214.54,0.00024209,2]
[388421938,1759163466669,-619.37,0.00024209,2]
[388421939,1759163466679,-2584.35,0.00024209,2]
[388421940,1759163466689,-689.97,0.00024209,2]
[388421941,1759163466699,-794.52,0.00024209,2]
[388421942,1759163466708,-480.0,0.00024209,2]
[388421943,1759163466717,-480.0,0.00024209,2]
[388421944,1759163466727,-480.0,0.00024209,2]
[388421945,1759163466736,-1411.37,0.00024209,2]
[388421946,1759163466746,-486.03985643,0.00024209,2]
[388421947,1759163466755,-525.57,0.00024209,2]
[388421948,1759163466764,-635.46,0.00024209,2]
[388421949,1759163466775,-2656.7,0.00024209,2]
[388421950,1759163466784,-524.83,0.00024209,2]
[388421951,1759163466793,-640.22,0.00024209,2]
[388421952,1759163466803,-803.32,0.00024209,2]
[388421953,1759163466813,-5789.26,0.00024209,2]
[388421954,1759163466823,-870.44,0.00024209,2]
[388421955,1759163466832,-752.25,0.00024209,2]
[388421956,1759163466841,-1654.72,0.00024209,2]
[388421957,1759163466851,-295.49799564,0.00024209,2]
[388421958,1759163466860,-859.67,0.00024209,2]
[388421959,1759163466870,-882.36,0.00024209,2]
[388421960,1759163466880,-480.0,0.00024209,2]
[388421961,1759163466889,-808.73,0.00024209,2]
[388421962,1759163466900,-480.0,0.00024209,2]
[388421963,1759163466909,-480.0,0.00024209,2]
[388421964,1759163466918,-1381.13,0.00024209,2]
[388421965,1759163466928,-5994.59,0.00024209,2]
[388421966,1759163466938,-480.0,0.00024209,2]
[388421967,1759163466947,-1414.96,0.00024209,2]
[388421968,1759163466957,-1109.65,0.00024209,2]
[388421969,1759163466966,-480.0,0.00024209,2]
[388421970,1759163466975,-499.50333973,0.00024209,2]
[388421971,1759163466985,-480.0,0.00024214,2]
[388421972,1759163466994,-480.0,0.00024214,2]
[388421973,1759163467004,-480.0,0.00024214,2]
[388421974,1759163467014,-480.0,0.00024214,2]
[388421975,1759163467023,-480.0,0.00024214,2]
[388421976,1759163467032,-611.79429863,0.00024214,2]
[388421977,1759163467041,-480.0,0.00024214,2]
[388421978,1759163467050,-480.0,0.00024214,2]
[388421979,1759163467059,-593.29,0.00024214,2]
[388421980,1759163467069,-480.0,0.00024214,2]
[388421981,1759163467078,-480.0,0.00024214,2]
[388421982,1759163467088,-569.2,0.00024214,2]
[388421983,1759163467098,-480.0,0.00024214,2]
[388421984,1759163467108,-504.88,0.00024214,2]
[388421985,1759163467118,-480.0,0.00024214,2]
[388421986,1759163467127,-480.0,0.00024214,2]
[388421987,1759163467136,-617.24,0.00024214,2]
[388421988,1759163467147,-542.13,0.00024214,2]
[388421989,1759163467156,-480.0,0.00024214,2]
[388421990,1759163467168,-480.0,0.00024214,2]
[388421991,1759163467177,-480.0,0.00024214,2]
[388421992,1759163467187,-480.0,0.00024214,2]
[388421993,1759163467197,-480.0,0.00024214,2]
[388421994,1759163467206,-480.0,0.00024214,2]
[388421995,1759163467216,-480.0,0.00024214,2]
[388421996,1759163467226,-480.0,0.00024214,2]
[388421997,1759163467235,-714.14,0.00024214,2]
[388421998,1759163467246,-480.0,0.00024214,2]
[388421999,1759163467255,-480.0,0.00024214,2]
[388422000,1759163467264,-480.0,0.00024214,2]
[388422001,1759163467274,-480.0,0.00024214,2]
[388422002,1759163467283,-589.63,0.00024214,2]
[388422003,1759163467293,-480.0,0.00024214,2]
[388422004,1759163467302,-480.0,0.00024214,2]
[388422005,1759163467311,-480.0,0.00024214,2]
[388422006,1759163467321,-480.0,0.00024214,2]
[388422007,1759163467331,-480.0,0.00024214,2]
[388422008,1759163467340,-480.0,0.00024214,2]
[388422009,1759163467349,-480.0,0.00024214,2]
[388422010,1759163467359,-480.0,0.00024214,2]
[388422011,1759163467368,-553.47,0.00024214,2]
[388422012,1759163467377,-540.56,0.00024214,2]
[388422013,1759163467387,-480.0,0.00024214,2]
[388422014,1759163467396,-480.0,0.00024214,2]
[388422015,1759163467406,-852.54,0.00024214,2]
[388422016,1759163467418,-480.0,0.00024214,2]
[388422017,1759163467428,-480.0,0.00024214,2]
[388422018,1759163467438,-870.97,0.00024214,2]
[388422019,1759163467448,-480.0,0.00024214,2]
[388422020,1759163467458,-620.5,0.00024214,2]
[388422021,1759163467467,-1065.5,0.00024214,2]
[388422022,1759163467478,-480.0,0.00024214,2]
[388422023,1759163467488,-622.73,0.00024214,2]
[388422024,1759163467497,-831.25,0.00024214,2]
[388422025,1759163467506,-553.52802134,0.00024214,2]
[388422026,1759163467515,-480.0,0.00024214,2]
[388422027,1759163467524,-481.06,0.00024214,2]
[388422028,1759163467533,-480.0,0.00024214,2]
[388422029,1759163467542,-480.0,0.00024214,2]
[388422030,1759163467552,-521.85954466,0.00024214,2]
[388422031,1759163467561,-480.0,0.00024214,2]
[388422032,1759163467571,-480.0,0.00024214,2]
[388422033,1759163467579,-480.0,0.00024214,2]
[388422034,1759163467588,-480.0,0.00024214,2]
[388422035,1759163467597,-480.0,0.00024214,2]
[388422036,1759163467754,-480.0,0.00024214,2]
[388422037,1759163467764,-200.0,0.00024214,2]
[388422038,1759163467774,-508.12099485,0.00024214,2]
[388422039,1759163467784,-515.57,0.00024214,2]
[388422040,1759163467798,-480.0,0.00024214,2]
[388422041,1759163467809,-480.0,0.00024214,2]
[388422042,1759163467819,-575.71,0.00024214,2]
[388422043,1759163467828,-765.93,0.00024214,2]
[388422044,1759163467839,-480.0,0.00024214,2]
[388422045,1759163467849,-480.0,0.00024214,2]
[388422046,1759163467858,-560.38,0.00024214,2]
[388422047,1759163467869,-480.0,0.00024214,2]
[388422048,1759163467878,-1368.36,0.00024214,2]
[388422049,1759163467887,-480.0,0.00024214,2]
[388422050,1759163467897,-567.93,0.00024214,2]
[388422051,1759163467906,-577.66,0.00024214,2]
[388422052,1759163467918,-480.0,0.00024214,2]
[388422053,1759163467928,-555.81,0.00024214,2]
[388422054,1759163467937,-500.0,0.00024214,2]
[388422055,1759163467946,-480.0,0.00024214,2]
[388422056,1759163467956,-480.0,0.00024214,2]
[388422057,1759163467965,-480.0,0.00024214,2]
[388422058,1759163467975,-682.11,0.00024214,2]
[388422059,1759163467985,-480.0,0.00024214,2]
[388422060,1759163467995,-573.84,0.00024214,2]
[388422061,1759163468005,-561.52,0.00024214,2]
[388422062,1759163468014,-480.0,0.00024214,2]
[388422063,1759163468024,-480.0,0.00024214,2]
[388422064,1759163468034,-480.0,0.00024214,2]
[388422065,1759163468044,-480.0,0.00024214,2]
[388422066,1759163468053,-480.0,0.00024214,2]
[388422067,1759163468062,-480.0,0.00024214,2]
[388422068,1759163468071,-480.0,0.00024214,2]
[388422069,1759163468081,-480.0,0.00024214,2]
[388422070,1759163468092,-480.0,0.00024214,2]
[388422071,1759163468102,-592.17,0.00024214,2]
[388422073,1759163468113,-480.0,0.00024214,2]
[388422074,1759163468123,-480.0,0.00024214,2]
[388422075,1759163468134,-480.0,0.00024214,2]
[388422076,1759163468143,-480.0,0.00024214,2]
[388422077,1759163468153,-480.0,0.00024214,2]
[388422078,1759163468165,-681.01,0.00024214,2]
[388422079,1759163468175,-480.0,0.00024214,2]
[388422080,1759163468184,-1578.7,0.00024214,2]
[388422081,1759163468194,-480.0,0.00024214,2]
[388422082,1759163468204,-480.0,0.00024214,2]
[388422083,1759163468214,-480.0,0.00024214,2]
[388422084,1759163468224,-480.0,0.00024214,2]
[388422085,1759163468234,-480.0,0.00024214,2]
[388422086,1759163468243,-480.0,0.00024214,2]
[388422087,1759163468253,-480.0,0.00024214,2]
[388422088,1759163468263,-480.0,0.00024214,2]
[388422089,1759163468272,-480.0,0.00024215,2]
[388422090,1759163468282,-480.0,0.00024215,2]
[388422091,1759163468292,-480.0,0.00024215,2]
[388422092,1759163468301,-480.0,0.00024215,2]
[388422093,1759163468310,-459.39881839,0.00024216,2]
[388422094,1759163468633,-500.0,0.00023555,2]
[388422095,1759163468643,-500.0,0.00023555,2]
[388422096,1759163468653,-500.0,0.00023555,2]
[388422097,1759163468665,-500.0,0.00023555,2]
[388422098,1759163468674,-500.0,0.00023555,2]
[388422099,1759163468684,-500.0,0.00023555,2]
[388422100,1759163468694,-500.0,0.00023555,2]
[388422101,1759163468703,-500.0,0.00023555,2]
[388422102,1759163468713,-500.0,0.00023555,2]
[388422103,1759163468722,-4671.70266407,0.00024216,2]
[388422104,1759163468731,-151.0,0.00024218,7]
[388422105,1759163468741,-151.0,0.00024218,7]
[388422106,1759163468751,-233.87608454,0.00024218,7]
[388422107,1759163468760,-160.0,0.00024228,5]
[388422108,1759163468770,-4689.12557433,0.00024229,2]
[388422109,1759163468782,-310.87442567,0.00024229,2]
[388422110,1759163468792,-2547.54393125,0.00024262,2]
[388422111,1759163468804,-4359.69528077,0.00024262,2]
[388422112,1759163468814,-253.0,0.00024264,2]
[388422113,1759163468824,-151.0,0.000243,8]
[388422114,1759163468834,-179.33356922,0.00024309,2]
[388422115,1759163468844,-541.39276689,0.00024309,2]
[388422116,1759163468853,-660.82,0.00024309,2]
[388422117,1759163468864,-13168.83517171,0.0002431,7]
[388422118,1759163468873,-480.0,0.0002431,2]
[388422119,1759163468884,-480.0,0.0002431,2]
[388422120,1759163468894,-480.0,0.0002431,2]
[388422121,1759163468904,-480.0,0.0002431,2]
[388422122,1759163468914,-536.7,0.0002431,2]
[388422123,1759163468924,-233.87608454,0.0002431,7]
[388422124,1759163468934,-500.0,0.0002431,2]
[388422125,1759163468943,-633.88,0.0002431,2]
[388422126,1759163468953,-480.0,0.0002431,2]
[388422127,1759163468962,-480.0,0.0002431,2]
[388422128,1759163468971,-167.015535,0.0002431,7]
[388422129,1759163468981,-151.0,0.0002431,7]
[388422130,1759163468990,-157.243651,0.0002431,7]
[388422131,1759163469000,-480.0,0.0002431,2]
[388422132,1759163469009,-151.0,0.0002431,7]
[388422133,1759163469019,-151.0,0.0002431,7]
[388422134,1759163469030,-480.0,0.0002431,2]
[388422135,1759163469040,-151.0,0.0002431,7]
[388422136,1759163469050,-480.0,0.0002431,2]
[388422137,1759163469061,-151.0,0.0002431,7]
[388422138,1759163469072,-151.0,0.0002431,7]
[388422139,1759163469082,-151.0,0.0002431,7]
[388422140,1759163469092,-151.0,0.0002431,7]
[388422141,1759163469102,-985.16,0.0002431,2]
[388422142,1759163469112,-151.0,0.0002431,7]
[388422143,1759163469121,-199.695225,0.0002431,7]
[388422144,1759163469131,-224.313998,0.0002431,7]
[388422145,1759163469142,-691.05,0.0002431,2]
[388422146,1759163469152,-480.0,0.0002431,2]
[388422147,1759163469162,-151.0,0.0002431,7]
[388422148,1759163469172,-151.0,0.0002431,7]
[388422149,1759163469182,-151.0,0.0002431,7]
[388422150,1759163469193,-539.15,0.0002431,2]
[388422151,1759163469203,-254.9706,0.0002431,7]
[388422152,1759163469214,-480.0,0.0002431,2]
[388422153,1759163469223,-151.0,0.0002431,7]
[388422154,1759163469233,-480.0,0.0002431,2]
[388422155,1759163469242,-151.0,0.0002431,7]
[388422156,1759163469252,-480.0,0.0002431,2]
[388422157,1759163469263,-752.4,0.0002431,2]
[388422158,1759163469274,-151.0,0.0002431,7]
[388422159,1759163469284,-480.0,0.0002431,2]
[388422160,1759163469294,-151.0,0.0002431,7]
[388422161,1759163469304,-2238.63,0.0002431,2]
[388422162,1759163469313,-703.68,0.0002431,2]
[388422163,1759163469323,-704.53,0.0002431,2]
[388422164,1759163469333,-151.0,0.0002431,7]
[388422165,1759163469343,-151.0,0.0002431,7]
[388422166,1759163469353,-151.0,0.0002431,7]
[388422167,1759163469363,-151.0,0.0002431,7]
[388422168,1759163469373,-227.605274,0.0002431,7]
[388422169,1759163469382,-480.0,0.0002431,2]
[388422170,1759163469391,-480.0,0.0002431,2]
[388422171,1759163469400,-151.0,0.0002431,7]
[388422172,1759163469411,-151.0,0.0002431,7]
[388422173,1759163469420,-685.52,0.0002431,2]
[388422174,1759163469430,-151.0,0.0002431,7]
[388422175,1759163469439,-246.29962585,0.0002431,7]
[388422176,1759163469448,-636.68,0.0002431,2]
[388422177,1759163469458,-602.24,0.0002431,2]
[388422178,1759163469468,-613.53,0.0002431,2]
[388422179,1759163469478,-625.57673,0.0002431,7]
[388422180,1759163469488,-625.57673,0.0002431,7]
[388422181,1759163469497,-66.20137327,0.0002431,7]
[388422182,1759163471650,-5000.0,0.0002345,2]
[388422183,1759163471755,-386.35845079,0.00023462,2]
[388422184,1759163471791,-480.0,0.00023539,2]
[388422185,1759163471834,-480.0,0.00023539,2]
[388422186,1759163471863,-480.0,0.00023539,2]
[388422187,1759163471890,-369.23758118,0.00023539,2]
[388422188,1759163471919,-480.0,0.00023539,2]
[388422189,1759163471947,-480.0,0.00023539,2]
[388422190,1759163471975,-480.0,0.00023539,2]
[388422191,1759163472002,-595.46,0.00023539,2]
[388422192,1759163472030,-500.0,0.00023555,2]
[388422193,1759163472059,-37.89793606,0.00023555,2]
[388422194,1759163473018,-480.0,0.00023539,2]
[388422195,1759163473046,-480.0,0.00023539,2]
[388422196,1759163473075,-480.0,0.00023539,2]
[388422197,1759163473106,-462.10206394,0.00023555,2]
[388422198,1759163473136,-500.0,0.00023555,2]
[388422199,1759163473167,-500.0,0.00023555,2]
[388422200,1759163473195,-500.0,0.00023555,2]
[388422201,1759163473223,-500.0,0.00023555,2]
[388422202,1759163473253,-500.0,0.00023555,2]
[388422203,1759163473282,-263.43907017,0.00023555,2]
[388422204,1759163473313,-168.92773178,0.00023555,2]
[388422205,1759163473362,-331.07226822,0.00023555,2]
[388422206,1759163473534,-500.0,0.00023555,2]
[388422207,1759163473571,-425.76229783,0.00023555,2]
[388422208,1759163473600,-500.0,0.00023555,2]
[388422209,1759163473627,-500.0,0.00023555,2]
[388422210,1759163473657,-500.0,0.00023555,2]
[388422211,1759163473687,-500.0,0.00023555,2]
[388422212,1759163473718,-500.0,0.00023555,2]
[388422213,1759163473747,-500.0,0.00023555,2]
[388422214,1759163473776,-500.0,0.00023555,2]
[388422215,1759163474221,5378.21445313,0.0002,2]
[388422216,1759163474576,-371.08226822,0.00023555,2]
[388422217,1759163474594,-128.91773178,0.00023555,2]
[388422218,1759163474603,-371.08226822,0.00023555,2]
[388422219,1759163474616,-128.91773178,0.00023555,2]
[388422220,1759163474627,-357.42313612,0.00023555,2]
[388422221,1759163481596,-502.41,0.00023539,2]
[388422222,1759163481624,-480.0,0.00023539,2]